Cogmind - Beta 11.1 @@@ ROGUE MODE // 2022.07.09 @ 15:38:24 Player: tkc Result: Destroyed by G-47 Trooper with Particle Gun Performance ------------- Evolutions (2) 1000 Regions Visited (5) 1000 Robots Destroyed (146) 730 Value Destroyed (3536) 3536 Prototype IDs (8) 160 Alien Tech Used (0) 0 Bonus (707) 707 TOTAL SCORE: 7133 Bonus ------- High Alert Combat Kills 474 Follower Combat Kills 33 Entered Garrisons 200 Cogmind --------- Core Integrity 0/550 Matter 247/300 Energy 84/100 System Corruption 1% Temperature Cool (9) Movement Core (1450) Ox28 Location -8/Garrison Parts ------- > --- POWER (1) -------- (None) > --- PROPULSION (2) --- (None) > --- UTILITY (6) ------ Medium Storage Unit Medium Storage Unit Large Storage Unit High-capacity Storage Unit Target Analyzer System Shield > --- WEAPON (2) ------- Particle Gun Heavy Flail > --- INVENTORY (20) --- Light Nuclear Core Cesium-ion Thruster Improved VTOL Module Improved VTOL Module Medium Matter Pod (100) Advanced Weight Redist. System Hacking Suite Relay Coupler [NC] (25) Relay Coupler [NC] (25) Relay Coupler [Swarmer] (33) Relay Coupler [Hunter] (14) EMP Blaster Rocket Launcher Scythe Peak State ------------ > --- POWER ------------ Heavy Ion Engine > --- PROPULSION ------- Light Treads Light Treads > --- UTILITY ---------- Small Storage Unit Medium Storage Unit Large Storage Unit Improved Propulsion Shielding Hardened Light Armor Plating Improved Light Armor Plating > --- WEAPON ----------- Spread Laser Advanced EMP Blaster > --- INVENTORY -------- Heavy Ion Engine Heavy Ion Engine Light Deuterium Engine Light Nuclear Core Compact Wheel VTOL Module Improved Flight Unit Improved VTOL Module Compact Matter Pod Hacking Suite System Shield Heavy Assault Rifle Autogun Flak Cannon Heavy Flail [Rating: 26] Favorites ----------- Power Heavy Ion Engine Engine Heavy Ion Engine Power Core Light Nuclear Core Propulsion Light Treads Treads Light Treads Leg Aluminum Leg Wheel Compact Wheel Flight Unit Improved VTOL Module Utility Medium Storage Unit Device Seismic Detector Storage Medium Storage Unit Processor Visual Processing Unit Hackware System Shield Protection Hardened Light Armor Plating Weapon Spread Laser Energy Gun Spread Laser Energy Cannon Light EM Pulse Cannon Ballistic Gun Autogun Ballistic Cannon Flak Cannon Launcher EMP Blaster Impact Weapon Maul Build | -11 -10 -9 -9 -8 -8 ------- Run | Scr Mat Mat Min Mat Gar Slots Evolved 4 | . . 2 . 2 . Power . | . . . . . . Propulsion . | . . . . . . Utility 4 | . . 2 . 2 . Weapon . | . . . . . . Parts Attached 137 | 8 10 49 4 55 11 Power 14 | 2 1 4 1 5 1 Engine 13 | 2 1 4 1 5 . Core 1 | . . . . . 1 Reactor . | . . . . . . Propulsion 29 | 2 2 12 . 11 2 Treads 17 | 1 2 9 . 5 . Leg 5 | . . 2 . 3 . Wheel 4 | 1 . . . 2 1 Hover . | . . . . . . Flight 3 | . . 1 . 1 1 Utility 25 | 2 1 9 1 11 1 Device 3 | 1 . 1 . 1 . Storage 9 | 1 1 2 . 5 . Processor 3 | . . 2 . 1 . Hackware 1 | . . . . . 1 Protection 9 | . . 4 1 4 . Artifact . | . . . . . . Weapon 69 | 2 6 24 2 28 7 Energy Gun 25 | 2 3 9 1 8 2 Energy Cannon 3 | . . 3 . . . Ballistic Gun 12 | . 1 4 . 5 2 Ballistic Cannon 3 | . . 1 . 2 . Launcher 15 | . 2 2 1 8 2 Special Weapon . | . . . . . . Impact Weapon 11 | . . 5 . 5 1 Slashing Weapon . | . . . . . . Piercing Weapon . | . . . . . . Special Melee Weapon . | . . . . . . Unidentified Prototypes 8 | . . 4 . 4 . Parts Lost 33 | . 3 11 . 11 8 Power 5 | . 1 1 . 1 2 Propulsion 9 | . 1 3 . 3 2 Utility 8 | . . 2 . 5 1 Weapon 11 | . 1 5 . 2 3 Highest Loss Streak 7 | . 3 7 . 7 4 To Critical Strikes . | . . . . . . Average Slot Usage (%) 92 | . 98 93 100 90 86 Engine 10 | . 12 10 11 8 6 Treads 12 | . 15 17 . 11 . Leg 3 | . . 3 22 1 . Wheel 2 | . 12 . . 3 7 Device 3 | . 14 5 . . . Storage 25 | . 14 19 33 30 36 Processor 3 | . . 5 5 . 9 Protection 10 | . . 8 5 14 6 Energy Gun 7 | . 25 6 2 6 1 Ballistic Gun 5 | . 1 7 11 4 4 Launcher 1 | . 1 . . 2 3 Impact Weapon 3 | . . 4 8 3 8 Naked Turns . | . . . . . . Heaviest Build 98 | 13 17 41 43 98 98 Greatest Support 42 | 20 40 40 20 42 16 Greatest Overweight (x) 30 | . 1 11 2 6 30 Average Overweight (x) 1 | . . . 1 3 6 Largest Inventory Capacity 20 | 8 10 10 10 20 20 Average Capacity 12 | 7 8 10 10 14 20 Most Carried 20 | 8 10 10 10 16 20 Average Carried 11 | 6 8 9 9 13 17 Final Capacity 20 | 8 10 10 10 20 20 Final Carried 16 | 8 9 7 10 16 14 Class Distribution -------------------- 50% | Scavenger-Mutant 49% | Mutant Dominant Class ---------------- Mutant | -10/Materials Scavenger-Mutant | -9/Materials Scavenger-Mutant | -9/Mines Mutant | -8/Materials Mutant | -8/Garrison Resources | -11 -10 -9 -9 -8 -8 ----------- Run | Scr Mat Mat Min Mat Gar Matter Collected 2745 | 330 189 1001 33 1019 173 Remotely . | . . . . . . Salvage Created 4374 | 210 555 1931 42 1357 279 Parts 268 | 16 38 121 6 73 14 Haulers Intercepted 12 | . 2 6 . 4 . Recyclers Shooed 9 | . . 6 . 3 . Parts Field Recycled . | . . . . . . Retrieved Matter . | . . . . . . Parts Self-Destructed . | . . . . . . Prevented . | . . . . . . Kills | -11 -10 -9 -9 -8 -8 ------- Run | Scr Mat Mat Min Mat Gar Combat Hostiles Destroyed 90 | . 10 41 4 30 5 Guns 48 | . 8 22 1 15 2 Cannons 10 | . . 6 . 4 . AOE 30 | . 2 12 3 11 2 Classes Destroyed 14 | 3 5 5 . 1 . Worker 6 | 3 1 . . 2 . Builder 8 | . 2 4 . 2 . Tunneler 7 | 4 . 1 2 . . Hauler 12 | . 2 6 . 4 . Recycler 11 | 1 1 5 . 4 . Operator 5 | . 2 2 . 1 . Watcher 7 | . . 4 . 3 . Swarmer 30 | . 3 11 4 12 . Grunt 38 | . 7 17 . 11 3 Brawler 2 | . . 2 . . . Duelist 2 | . . 2 . . . Protector 1 | . . 1 . . . Sentry 16 | . . 8 . 6 2 Hunter 1 | . . . . 1 . Best Kill Streak 12 | 3 8 12 5 4 3 Combat Bots Only 8 | . 4 8 4 4 3 Max Kills in Single Turn 4 | 1 4 4 4 4 1 Gunslinging 1 | . . 1 . . . Exploded 4 | . 2 4 3 4 1 Melee . | . . . . . . Uniques/NPCs Destroyed . | . . . . . . Combat | -11 -10 -9 -9 -8 -8 -------- Run | Scr Mat Mat Min Mat Gar Damage Taken 6817 | . 678 2596 33 2672 838 Core 1117 | . 217 337 . 317 246 Absorbed by Shields . | . . . . . . Redirected to Shielding 99 | . . . . 99 . Regen/Repaired (Parts) 73 | . . . . 73 . Core Remaining (%) 42 | 100 13 . 15 . . Volleys Fired 357 | 17 52 122 2 145 19 Largest 2 | 2 2 2 2 2 2 Hottest 121 | 90 90 121 56 109 88 Shots Fired 600 | 34 102 211 3 230 20 Gun 492 | 34 100 153 2 192 11 Cannon 66 | . . 48 . 18 . Launcher 42 | . 2 10 1 20 9 Special . | . . . . . . Kinetic 236 | . 8 94 2 128 4 Thermal 301 | 34 92 86 . 82 7 Explosive 23 | . 2 10 1 10 . Electromagnetic 40 | . . 21 . 10 9 Robot Hit Streak 17 | 8 13 14 2 17 16 Robot Miss Streak 11 | 3 3 6 1 11 1 Penetration Max . | . . . . . . Secondary Targets 3 | . . 2 . 1 . Max Gunslinging Chain 1 | . . 1 . 1 . Shots Hit Robots 437 | 20 63 159 4 175 16 Core Hits 331 | 9 33 129 4 146 10 Critical Kills 1 | . . . . 1 . Critical Parts Destroyed 3 | . . 2 1 . . Critical Strikes 12 | 2 . 6 1 2 1 Burn 8 | 2 . 4 . 1 1 Destroy 2 | . . 1 . 1 . Smash 2 | . . 1 1 . . Melee Attacks 27 | . . 14 2 10 1 Impact 27 | . . 14 2 10 1 Slashing . | . . . . . . Piercing . | . . . . . . Sneak Attacks 3 | . . 1 2 . . Combat Hostiles . | . . . . . . Follow-up Attacks . | . . . . . . Damage Inflicted 9252 | 248 964 3690 383 3488 479 Guns 4726 | 248 753 1665 12 1913 135 Cannons 1062 | . . 646 . 416 . Explosions 3173 | . 211 1307 236 1075 344 Melee 291 | . . 72 135 84 . Ramming . | . . . . . . Kinetic 2490 | . 51 1017 12 1392 18 Thermal 3356 | 248 790 1230 . 971 117 Explosive 2336 | . 123 1091 236 886 . Electromagnetic 779 | . . 280 . 155 344 Impact 291 | . . 72 135 84 . Slashing . | . . . . . . Piercing . | . . . . . . Highest Corruption 2 | . . 2 2 . 1 Average Corruption 1 | . . 1 2 . 1 Corruption Purged . | . . . . . . Corruption Blocked . | . . . . . . Effects 18 | . . 12 5 . 1 Message Errors 4 | . . 3 . . 1 Matter Fused 7 | . . 3 4 . . Heat Flow Errors 3 | . . 2 1 . . Energy Discharges 1 | . . 1 . . . Data Loss (minor) 2 | . . 2 . . . Weapon Failures 1 | . . 1 . . . Overload Shots . | . . . . . . Overflow Damage 350 | . 1 88 114 147 . Projectiles 10 | . . 10 . . . Explosions 213 | . 1 46 19 147 . Melee 127 | . . 32 95 . . Knockbacks 11 | . . 4 1 6 . Impact 2 | . . 1 1 . . Kinetic 7 | . . 2 . 5 . Secondary 2 | . . 1 . 1 . Self-Inflicted Damage 473 | . 155 129 . 116 73 Shots 17 | . 4 3 . 6 4 Rammed 1 | . . . . 1 . Targets Rammed 1 | . . . . 1 . Kicked . | . . . . . . Crushed . | . . . . . . Highest Temperature 455 | 60 162 354 238 455 115 Average Temperature 74 | 23 49 74 101 95 33 Received Heat Transfer 2466 | . 291 1023 . 810 342 Effects 5 | . . . . 5 . Shutdowns 1 | . . . . 1 . Interference 2 | . . . . 2 . Short Circuit 1 | . . . . 1 . Damage (minor) 1 | . . . . 1 . Siege Activations . | . . . . . . Robots Corrupted 2 | . . 1 . . 1 Combat Hostiles 1 | . . . . . 1 Parts Fried 6 | . . 4 1 . 1 Impact Corruptions 6 | . . 2 3 1 . Robots Melted . | . . . . . . Combat Hostiles . | . . . . . . Parts Melted 12 | 1 6 3 . 1 1 Heat Transferred 6748 | 817 1885 2361 . 1352 333 Parts Sabotaged . | . . . . . . Parts Stolen . | . . . . . . Parts Stripped . | . . . . . . Power Chain Reactions 5 | . . 1 . 3 1 Missiles Intercepted . | . . . . . . Alert | -11 -10 -9 -9 -8 -8 ------- Run | Scr Mat Mat Min Mat Gar Peak Influence 1168 | 40 496 1168 596 619 523 Initial 436 | . 26 135 436 154 272 Average 437 | 15 248 565 452 424 358 Maximum Alert Level 4 | . 2 4 2 2 2 Low Security (%) 18 | 100 34 30 . 1 . Level 1 30 | . 57 17 14 33 97 Level 2 39 | . 8 16 85 64 2 Level 3 5 | . . 17 . . . Level 4 5 | . . 17 . . . Level 5 . | . . . . . . High Security . | . . . . . . Max Security . | . . . . . . Squads Dispatched 18 | . 2 9 . 7 . Investigation 2 | . . 2 . . . Extermination . | . . . . . . Reinforcement 9 | . 2 3 . 4 . Assault 4 | . . 4 . . . Garrison 3 | . . . . 3 . Intercept . | . . . . . . Searches Triggered . | . . . . . . Construction Impeded . | . . . . . . Haulers Reinforced . | . . . . . . Active Scanning Responses . | . . . . . . Cargo Convoy Interrupts . | . . . . . . Stealth | -11 -10 -9 -9 -8 -8 --------- Run | Scr Mat Mat Min Mat Gar Distress Signals 4 | . . 3 . 1 . Communications Jammed . | . . . . . . Distress Signals . | . . . . . . Times Spotted 149 | . 17 69 4 51 8 Peak Tracking Total 9 | . 5 9 4 7 7 Tactical Retreats 9 | . 1 4 . 2 2 Traps | -11 -10 -9 -9 -8 -8 ------- Run | Scr Mat Mat Min Mat Gar Traps Triggered 5 | . 1 3 . . 1 Indirectly 1 | . . . . . 1 Trap Hack Attempts . | . . . . . . Triggered . | . . . . . . Disarmed . | . . . . . . Reprogrammed . | . . . . . . Reused . | . . . . . . Traps Extracted . | . . . . . . Installed . | . . . . . . Triggered . | . . . . . . Machines | -11 -10 -9 -9 -8 -8 ---------- Run | Scr Mat Mat Min Mat Gar Machines Disabled 16 | . 6 6 . 3 1 Max in Single Turn 2 | . 2 2 . 1 1 Garrison Relay 1 | . . . . . 1 Machines Sabotaged . | . . . . . . Garrisons Compromised . | . . . . . . Overloaded Fab Kills . | . . . . . . Hacking | -11 -10 -9 -9 -8 -8 --------- Run | Scr Mat Mat Min Mat Gar Machines Accessed 18 | . . 9 . 9 . Terminals 14 | . . 7 . 7 . Fabricators . | . . . . . . Repair Stations 1 | . . . . 1 . Recycling Units . | . . . . . . Scanalyzers 2 | . . 2 . . . Garrison Access 1 | . . . . 1 . Total Hacks 48 | . . 25 . 23 . Successful 25 | . . 13 . 12 . Failed 23 | . . 12 . 11 . Catastrophic 4 | . . 3 . 1 . Database Lockouts . | . . . . . . Manual 25 | . . 14 . 11 . Terminals 35 | . . 17 . 18 . Fabricators . | . . . . . . Repair Stations 4 | . . . . 4 . Recycling Units . | . . . . . . Scanalyzers 8 | . . 8 . . . Garrison Access 1 | . . . . 1 . Terminal Hacks 12 | . . 4 . 8 . Level Access Points 1 | . . . . 1 . Branch Access Points 2 | . . 1 . 1 . Terminal Index 1 | . . 1 . . . Fabricator Index 1 | . . . . 1 . Alert Level 2 | . . . . 2 . Unreport Threat 1 | . . . . 1 . Hauler Manifests 1 | . . 1 . . . Zone Layout 3 | . . 1 . 2 . Fabricator Hacks . | . . . . . . Repair Station Hacks 2 | . . . . 2 . Scan Component 1 | . . . . 1 . Repair 1 | . . . . 1 . Recycling Unit Hacks . | . . . . . . Scanalyzer 7 | . . 7 . . . Insert Component 4 | . . 4 . . . Analyze 3 | . . 3 . . . Garrison Access Hacks 1 | . . . . 1 . Unlock Access 1 | . . . . 1 . Unauthorized Hacks 3 | . . 2 . 1 . Terminals 3 | . . 2 . 1 . Botnet 2 | . . 1 . 1 . Disrupt 1 | . . 1 . . . Fabricators . | . . . . . . Repair Stations . | . . . . . . Recycling Units . | . . . . . . Scanalyzers . | . . . . . . Garrison Access . | . . . . . . Data Cores Recovered . | . . . . . . Used . | . . . . . . Hacking Detections 15 | . . 8 . 7 . Full Trace Events 1 | . . 1 . . . Feedback Events 1 | . . 1 . . . Corruption 1 | . . 1 . . . Feedback Blocked . | . . . . . . Robot Schematics Acquired . | . . . . . . Robots Built . | . . . . . . Authchips . | . . . . . . Time . | . . . . . . Total Robot Build Rating . | . . . . . . Part Schematics Acquired 3 | . . 3 . . . Parts Built . | . . . . . . Authchips . | . . . . . . Time . | . . . . . . Total Part Build Rating . | . . . . . . Parts Repaired 1 | . . . . 1 . Time 32 | . . . . 32 . Parts Recycled . | . . . . . . Recycled Matter . | . . . . . . Retrieved Matter . | . . . . . . Retrieved Components . | . . . . . . Parts Scanalyzed 3 | . . 3 . . . Part Schematics Acquired 3 | . . 3 . . . Parts Damaged . | . . . . . . Bothacking | -11 -10 -9 -9 -8 -8 ------------ Run | Scr Mat Mat Min Mat Gar Used RIF Installer . | . . . . . . Robots Hacked . | . . . . . . Non-combat . | . . . . . . Combat . | . . . . . . Robot Hacks Applied . | . . . . . . Relay Couplers Released 5 | . . . . . 5 Machine Destruction 5 | . . . . . 5 Fabnet Peak Effective % . | . . . . . . Robots Rewired . | . . . . . . Allies Hacked . | . . . . . . Hacks Repelled . | . . . . . . Allies | -11 -10 -9 -9 -8 -8 -------- Run | Scr Mat Mat Min Mat Gar Total Allies 1 | . . . 1 . . Largest Group 1 | . . . 1 . . Highest-Rated Group 31 | . . . 31 . . Highest-Rated Ally 31 | . . . 31 . . Total Orders . | . . . . . . Ally Attacks 2 | . . . 2 . . Total Damage 43 | . . . 43 . . Kills 1 | . . . 1 . . Allies Corrupted . | . . . . . . Allies Melted . | . . . . . . Intel | -11 -10 -9 -9 -8 -8 ------- Run | Scr Mat Mat Min Mat Gar Robot Analysis Total . | . . . . . . Derelict Logs Recovered 2 | . . . 2 . . Drone Launches . | . . . . . . Drone Recoveries . | . . . . . . Exploration | -11 -10 -9 -9 -8 -8 ------------- Run | Scr Mat Mat Min Mat Gar Turns Passed 7500 | 328 674 2515 468 3249 266 Spaces Moved 3195 | 161 333 1134 198 1274 95 Core 9 | 1 . 5 . . 3 Treads 1906 | 158 231 923 . 594 . Legs 482 | . . 206 198 78 . Wheels 798 | 2 102 . . 602 92 Hover . | . . . . . . Flight . | . . . . . . Fastest Speed 50 | 50 100 160 190 125 175 Average Speed 186 | 158 143 172 223 204 230 Slowest Speed 1550 | 160 160 600 260 330 1550 Overloaded Moves . | . . . . . . Propulsion Burnouts . | . . . . . . Robots Hopped . | . . . . . . Cave-ins Triggered . | . . . . . . Exploration Rate (%) 44 | 11 42 72 42 82 15 Regions Visited 5 Branch Regions 1 Pre-discovered Areas . | . . . . . . Known Exits Taken 3 | . . 1 1 1 . Unknown Exits Taken 2 | 1 1 . . . . Scrap Searched . | . . . . . . Spaces Dug 18 | . . 12 . 6 . Terrain Destroyed 291 | . 37 92 14 140 8 Melee 18 | . . 12 . 6 . Projectile . | . . . . . . AOE 273 | . 37 80 14 134 8 Terrain Rammed . | . . . . . . Walls Destroyed . | . . . . . . Machines Disabled . | . . . . . . Actions | -11 -10 -9 -9 -8 -8 --------- Run | Scr Mat Mat Min Mat Gar Total 4107 | 197 429 1450 218 1680 133 Wait 255 | . 19 97 6 133 . Move 3191 | 160 332 1133 197 1274 95 Hop . | . . . . . . Pick Up 68 | 10 8 12 4 29 5 Fast Attach 36 | 7 . 16 1 12 . Attach 29 | 1 2 10 . 8 8 Detach 7 | . . 3 1 2 1 Swap 73 | . 8 23 3 35 4 Drop 63 | 2 8 20 2 31 . Fire 357 | 17 52 122 2 145 19 Melee 27 | . . 14 2 10 1 Ram . | . . . . . . Kick . | . . . . . . Crush 1 | . . . . 1 . Escape Stasis . | . . . . . . Rewire . | . . . . . . Trap . | . . . . . . Miscellaneous . | . . . . . . Route ------- -11/Scrapyard -10/Materials (discovered 2 exits: *Mat / [*Min]) -9/Materials (discovered 3 exits: *Mat x2 / *Min) -9/Mines (discovered 2 exits: *Mat x2) -8/Materials (discovered 4 exits: *Fac x3 / Gar) -8/Garrison History --------- Turn | Location | Event 19 | -11/Scrapyard | Discovered new exit (range 15) 329 | -11/Scrapyard | Entered Materials 330 | -10/Materials | Build established: Mutant 654 | -10/Materials | Discovered new exit (range 8) 674 | -10/Materials | Core integrity fell below 50% 821 | -10/Materials | Discovered new exit (range 11) 929 | -10/Materials | Core integrity fell below 20% 983 | -10/Materials | Lost 3 parts (1p1n1w) 1003 | -10/Materials | Entered another Materials area 1003 | -9/Materials | Evolved 2 slots: Utility x2 1062 | -9/Materials | Build established: Scavenger-Mutant 1818 | -9/Materials | Discovered new exit (range 14) 2167 | -9/Materials | Destroyed 8 combat bots 2259 | -9/Materials | Destroyed 7 combat bots 2281 | -9/Materials | Discovered new exit (range 18) 2603 | -9/Materials | First assault squad dispatched 2720 | -9/Materials | Destroyed 7 combat bots 2769 | -9/Materials | Identified exit to Mines 3034 | -9/Materials | Core integrity fell below 50% 3092 | -9/Materials | Core integrity fell below 20% 3126 | -9/Materials | Lost 7 parts (1p2n1u3w) 3518 | -9/Materials | Entered Mines 3556 | -9/Mines | Received a Mining Laser from a helpful Derelict 3563 | -9/Mines | Received a Rocket Launcher from a helpful Derelict 3666 | -9/Mines | Learned Materials trap positions 3702 | -9/Mines | Joined a pair of Derelicts in attacking an 0b10 outpost 3877 | -9/Mines | Identified exit to Materials 3952 | -9/Mines | Discovered exit to Materials (range 13) 3986 | -9/Mines | Entered Materials 3986 | -8/Materials | Evolved 2 slots: Utility x2 3987 | -8/Materials | Loaded intel: 19 trap records 4482 | -8/Materials | Discovered new exit (range 16) 4917 | -8/Materials | Repaired Spread Laser 5160 | -8/Materials | Discovered new exit (range 11) 5166 | -8/Materials | Build established: Mutant 5299 | -8/Materials | Identified exit to Factory 5968 | -8/Materials | Garrison activated, responded to threat 6068 | -8/Materials | Lost 7 parts (1n4u2w) 6665 | -8/Materials | Core integrity fell below 50% 6719 | -8/Materials | Lost 4 parts (1p2n1u) 7235 | -8/Materials | Identified exit to Garrison 7235 | -8/Materials | Entered Garrison 7244 | -8/Garrison | Triggered checkpoint 7303 | -8/Garrison | Garrison Relay disabled 7408 | -8/Garrison | Triggered checkpoint 7459 | -8/Garrison | Core integrity fell below 20% 7461 | -8/Garrison | Lost 3 parts (1p1n1u) 7501 | -8/Garrison | Destroyed by G-47 Trooper with Particle Gun Last Messages --------------- 07421_ Chain reaction triggered in Hvy. Ion Engine. 07427_ Y-45 Defender misfires. 07430_ Com. Wheel destroyed. 07433_ Y-45 Defender IFF system glitched. 07436_ Y-45 Defender misfires. 07457_ Y-45 Defender suffers critical hit (Burn). 07460_ Y-45 Defender heat damages Beam Rifle, Lgt. Treads, Imp. Ion Engine, Heat Sink. 07461_ Lgt. Armor Plating melted. 07461_ Y-45 Defender destroyed. 07461_ Field Laser destroyed. 07463_ Acquired 55 matter. 07472_ Com. Wheel destroyed. 07473_ Identified Relay Coupler [NC]. 07473_ Relay Coupler [NC] fries itself. 07478_ Y-45 Defender misfires. 07479_ Y-45 Defender destroyed. 07491_ Hvy. Assault Rifle destroyed. 07491_ Lgt. Nuclear Core destroyed. 07500_ ALERT: Garrison interior compromised. Map ----- +----------------------------------------------------+ | ????????????????????#" "#????# #???????????? | | ????????????????????#" "#????# #???????????? | | ????????????????????#" "#????# ###???????????? | | ????????????????????#"" "#????# #?????????????? | | ????????????????????### ###????# #?????????????? | | ??????????????????????# #??????# #?????????????? | | ??????????????????????# #??????#= #?????????????? | | ??????????????????????# #????### = #?????????????? | | ??????????????????????# ###### = #?????????????? | | ??????????????????????# ! ! #?????????????? | | ??????????????????????# ######=[% #?????????????? | | ??????????????????????# #????### #?????????????? | | ??????????????????????# #??????# #?????????????? | | ??????????????????????# #??????# #?????????????? | | ?????????????????????## ##?????# #?????????????? | | ?????????????????????#! !#?????# #?????????????? | | ?????????????????????#! !#####?" #?????????????? | | ?????????????????????#! #?" #?????????????? | | ?????????????????????#! [#####?" #?????????????? | | ?????????????????????#! [#?????# #?????????????? | | ?????????????????????## ##?????? #?????????????? | | ??????????????????????# #??????? #?????????????? | | ??????????????????????# #??????? #?????????????? | | ??????????????????????# #??????? #?????????????? | | ??????????????????????#[###### #?????????????? | | ??????????????????????#!g@[ g #?????????????? | | ??????????????????????#=###### #?????????????? | | ??????????????????????#=### #???? #?????????????? | | ??????????????????????# ##"""### #?????????????? | | ??????????????????????# #?????????????? | | ??????????????????????# ##"""### #?????????????? | | ??????????????????????# ######???? #?????????????? | | ??????????????????????###????????????????????????? | | ?????????????????????????????????????????????????? | | ?????????????????????????????????????????????????? | | ?????????????????????????????????????????????????? | | ?????????????????????????????????????????????????? | | ?????????????????????????????????????????????????? | | ?????????????????????????????????????????????????? | | ?????????????????????????????????????????????????? | | ?????????????????????????????????????????????????? | | ?????????????????????????????????????????????????? | | ?????????????????????????????????????????????????? | | ?????????????????????????????????????????????????? | | ?????????????????????????????????????????????????? | | ?????????????????????????????????????????????????? | | ?????????????????????????????????????????????????? | | ?????????????????????????????????????????????????? | | ?????????????????????????????????????????????????? | | ?????????????????????????????????????????????????? | +----------------------------------------------------+ Best States ------------- Heat Dissipation 50 Energy Generation 14 Energy Capacity 280 Matter Stores 360 Matter Capacity 450 Sight Range 18 Terrain Scan Density 10 Additional Mass Support 6 Armor Coverage 300 Propulsion Shielding 66 Evasion (%) 40 Target Analysis 5 Recoil Reduction 2 Defensive Hacking 10 Item Schematics ----------------- Hacking Suite | -9/Materials | Scanalyzed Rnf. Ion Engine | -9/Materials | Scanalyzed Imp. Flight Unit | -9/Materials | Scanalyzed Robot Schematics ------------------ None Fabricated ------------ Nothing Alien Tech Used ----------------- None Achievements -------------- None Challenges ------------ None Game ------ Seed EfficiencyChipShielding Manual? 0 Play Time 01:38:06 Cumulative 41.0 hours Start 2022.07.09 @ 13:58:18 End 2022.07.09 @ 15:38:24 Sessions 1 Manual Loads 0 Difficulty Rogue Special Mode None Game No. 30 Rogue 29 Adventurer 0 Explorer 1 Win Type - Total 0 Types 0/0/0/0/0/0/0/0/0 Lore% 17 Gallery% 24 Achievement% 19 Wizard Run 0 Options --------- ASCII 0 Keyboard 0 Movement Mouse Keybinds 0 Fullscreen 1 Font 36/Terminus Map View 76x50 Tactical HUD 1 Map Filters NONE Filters NONE Steam 1 RUN: d14fddff-2f7e-4b24-a835-b93e04eeb9db